bitfinex-derivatives/quotes_BTCF0:USTF0_20210707
["timestamp","ask_amount","ask_price","bid_price","bid_amount"]
[1625628750540,0.24057544,34526.0,34512.0,4.06158]
[1625628750659,0.24057544,34526.0,34512.0,3.7921]
[1625628751019,0.24057544,34526.0,34488.0,0.07746344]
[1625628751140,0.24057544,34526.0,34489.0,0.2358]
[1625628751501,0.24057544,34526.0,34502.0,4.6782]
[1625628751620,0.24057544,34526.0,34490.0,0.5]
[1625628751744,0.24057544,34526.0,34491.0,0.07714399]
[1625628752040,0.24057544,34506.0,34501.0,0.24057544]
[1625628752161,0.24057544,34506.0,34494.0,0.24057544]
[1625628752463,0.24057544,34506.0,34479.0,0.07746256]
[1625628752583,0.48542544,34506.0,34479.0,0.07746256]
[1625628752702,0.48542544,34506.0,34489.0,0.0721]
[1625628753905,0.72172632,34490.0,34489.0,0.0721]
[1625628754028,1.03300632,34490.0,34489.0,0.0721]
[1625628754272,0.79243088,34490.0,34489.0,0.0721]
[1625628754388,0.31128,34490.0,34489.0,0.0721]
[1625628754507,0.3072,34490.0,34489.0,0.0721]
[1625628755410,0.24485,34506.0,34489.0,0.0721]
[1625628755892,0.24485,34506.0,34494.0,0.24057544]
[1625628756013,0.24057544,34498.0,34494.0,0.24057544]
[1625628756252,0.24057544,34502.0,34494.0,0.24057544]
[1625628756374,0.24057544,34502.0,34499.0,0.002]
[1625628756492,0.24057544,34502.0,34499.0,0.25731]
[1625628757157,0.001,34511.0,34499.0,0.25731]
[1625628757936,0.24057544,34510.0,34509.0,0.24057544]
[1625628758117,0.24057544,34510.0,34509.0,0.46966544]
[1625628758836,0.001,34511.0,34509.0,0.46966544]
[1625628759619,0.001,34511.0,34504.0,0.001]
[1625628759738,0.33354,34511.0,34504.0,0.001]
[1625628759987,0.48115088,34505.0,34504.0,0.001]
[1625628762028,0.72172632,34505.0,34504.0,0.001]
[1625628765214,0.98407632,34505.0,34504.0,0.001]
[1625628767494,1.48407632,34505.0,34504.0,0.001]
[1625628768279,0.98407632,34505.0,34503.0,0.001]
[1625628768518,1.48407632,34505.0,34503.0,0.001]
[1625628770080,0.24057544,34504.0,34503.0,0.001]
[1625628770198,0.74057544,34504.0,34503.0,0.001]
[1625628772484,0.24057544,34504.0,34503.0,0.001]
[1625628773690,0.74057544,34504.0,34503.0,0.001]
[1625628777296,0.74057544,34504.0,34502.0,0.001]
[1625628778499,0.01351477,34503.0,34502.0,0.001]
[1625628782949,0.01351477,34503.0,34456.0,1.40540562]
[1625628783071,0.01351477,34503.0,34482.0,0.005]
[1625628783310,0.9424,34502.0,34501.0,0.001]
[1625628783490,0.9424,34502.0,34496.0,0.002]
[1625628783491,1.4424,34502.0,34496.0,0.002]
[1625628783608,1.49018569,34502.0,34496.0,0.002]
[1625628783789,1.49018569,34502.0,34486.0,0.004]
[1625628783968,0.04778634,34501.0,34481.0,0.005]
[1625628784089,0.96230176,34487.0,34481.0,0.005]
[1625628784213,0.5,34486.0,34481.0,0.005]
[1625628784332,0.84486,34486.0,34481.0,0.005]
[1625628784451,0.01354541,34485.0,34481.0,0.005]
[1625628784873,0.78630541,34486.0,34481.0,0.005]
[1625628785831,0.9021,34485.0,34481.0,0.005]
[1625628786012,0.44144541,34484.0,34455.0,0.24057544]
[1625628786133,0.24057544,34456.0,34455.0,0.24057544]
[1625628786314,0.47072544,34456.0,34455.0,0.24057544]
[1625628786611,0.47072544,34456.0,34455.0,0.24501475]
[1625628787693,0.47072544,34456.0,34455.0,0.24057544]
[1625628789254,0.24057544,34456.0,34455.0,0.24057544]
[1625628789795,0.24057544,34456.0,34452.0,0.24057544]
[1625628789915,0.24057544,34456.0,34445.0,0.24057544]
[1625628790037,0.50633544,34456.0,34442.0,0.07897489]
[1625628790156,0.72172632,34443.0,34442.0,0.07897489]
[1625628790279,0.72172632,34443.0,34439.0,0.24057544]
[1625628790518,0.72172632,34443.0,34439.0,0.31970439]
[1625628790519,0.24057544,34443.0,34439.0,0.31970439]
[1625628790638,0.24057544,34443.0,34440.0,0.00444106]
[1625628790757,0.24057544,34443.0,34441.0,0.07908565]
[1625628791177,0.24057544,34443.0,34442.0,0.00444084]
[1625628791537,0.9646,34455.0,34442.0,0.32059683]
[1625628791657,0.9646,34455.0,34442.0,0.63092683]
[1625628792022,0.9646,34455.0,34443.0,0.00444079]
[1625628792138,0.9646,34455.0,34454.0,0.24057544]
[1625628794120,0.9646,34455.0,34454.0,0.45668544]
[1625628796285,0.9646,34455.0,34454.0,0.69726088]
[1625628801395,0.9646,34455.0,34454.0,0.78326088]
[1625628801633,0.9646,34455.0,34454.0,0.69726088]
[1625628802595,0.4142,34455.0,34454.0,0.69726088]
[1625628803615,0.4142,34455.0,34454.0,0.48115088]
[1625628804216,0.89535088,34455.0,34454.0,0.48115088]
[1625628804817,0.89535088,34455.0,34451.0,0.001]
[1625628805778,0.5,34454.0,34451.0,0.001]
[1625628805900,0.5,34454.0,34441.0,0.003]
[1625628806259,0.72172632,34442.0,34441.0,0.003]
[1625628806381,0.95662632,34442.0,34441.0,0.003]
[1625628806801,0.95662632,34442.0,34436.0,0.004]
[1625628806924,1.45662632,34442.0,34436.0,0.004]
[1625628807582,0.95662632,34442.0,34436.0,0.004]
[1625628808185,0.48115088,34437.0,34436.0,0.004]
[1625628808304,0.48115088,34437.0,34435.0,0.004]
[1625628810229,0.48115088,34442.0,34436.0,0.24057544]
[1625628810349,0.48115088,34442.0,34436.0,0.5793307]
[1625628810530,0.003,34467.0,34436.0,0.5793307]
[1625628810650,0.003,34467.0,34439.0,0.07986946]
[1625628811071,0.003,34467.0,34438.0,0.39936258]
[1625628811554,0.003,34467.0,34450.0,0.001]
[1625628811791,0.003,34467.0,34450.0,0.32975]
[1625628812275,0.24057544,34453.0,34452.0,0.24057544]
[1625628815346,0.24057544,34453.0,34450.0,0.001]
[1625628815464,0.50388544,34453.0,34450.0,0.001]
[1625628815584,1.00388544,34453.0,34450.0,0.001]
[1625628816005,0.01352852,34452.0,34450.0,0.001]
[1625628816308,0.48115088,34451.0,34450.0,0.001]
[1625628816430,0.98115088,34451.0,34450.0,0.001]
[1625628816786,0.99468017,34451.0,34450.0,0.001]
[1625628819309,0.99468017,34451.0,34445.0,0.002]
[1625628819436,0.99468017,34451.0,34421.0,0.08040904]
[1625628819551,0.057,34450.0,34421.0,0.08040904]
[1625628819790,0.04785454,34449.0,34421.0,0.08040904]
[1625628819919,0.04785454,34449.0,34416.0,1.12572662]
[1625628819920,0.04785454,34449.0,34409.0,0.08074217]
[1625628819921,0.257,34440.0,34409.0,0.08074217]
[1625628820029,0.5,34439.0,34409.0,0.08074217]
[1625628820210,0.057,34438.0,34407.0,0.40396314]
[1625628820330,0.057,34438.0,34435.0,0.003]
[1625628820509,1.63153632,34439.0,34435.0,0.003]
[1625628820630,0.01353656,34437.0,34435.0,0.003]
[1625628820870,0.01353673,34438.0,34435.0,0.003]
[1625628821412,0.0864,34437.0,34435.0,0.003]
[1625628822310,0.96230176,34436.0,34435.0,0.003]
[1625628822430,5.73130176,34436.0,34435.0,0.003]
[1625628822794,5.73130176,34436.0,34403.0,0.08070082]
[1625628822795,0.057,34435.0,34403.0,0.08070082]
[1625628822973,1.51816806,34430.0,34402.0,0.80700816]
[1625628823091,0.587,34429.0,34393.0,0.40478097]
[1625628823213,1.51866875,34426.0,34390.0,0.08108433]
[1625628823393,0.557,34425.0,34390.0,0.08108433]
[1625628823573,0.057,34425.0,34389.0,0.4054323]
[1625628823693,0.057,34425.0,34390.0,0.5]
[1625628823931,0.057,34425.0,34394.0,0.08097438]
[1625628824172,0.057,34425.0,34397.0,0.40440991]
[1625628824413,0.24057544,34398.0,34397.0,0.08088198]
[1625628824712,0.24057544,34398.0,34394.0,0.24057544]
[1625628826400,0.24057544,34398.0,34396.0,0.24057544]
[1625628826517,0.24057544,34402.0,34396.0,0.24057544]
[1625628827418,0.24057544,34402.0,34396.0,0.45942544]
[1625628828378,0.24057544,34402.0,34401.0,0.24057544]
[1625628828980,0.24057544,34405.0,34401.0,0.24057544]
[1625628829103,0.24057544,34409.0,34401.0,0.24057544]
[1625628829520,0.24057544,34409.0,34402.0,0.0804055]
[1625628829700,0.24057544,34409.0,34402.0,0.40202565]
[1625628830061,0.24057544,34409.0,34403.0,0.39931935]
[1625628830419,0.24057544,34409.0,34408.0,0.48115088]
[1625628831505,0.24057544,34415.0,34408.0,0.48115088]
[1625628832286,0.24057544,34419.0,34408.0,0.56136307]
[1625628832405,0.24057544,34419.0,34418.0,0.48115088]
[1625628832524,0.24057544,34419.0,34418.0,0.75394088]
[1625628833905,0.24057544,34422.0,34418.0,0.75394088]
[1625628834447,0.24057544,34422.0,34419.0,0.24057544]
[1625628838348,0.24057544,34422.0,34419.0,0.47948544]
[1625628839372,0.001,34420.0,34419.0,0.47948544]
[1625628841174,0.001,34420.0,34419.0,0.24057544]
[1625628841655,0.2295,34420.0,34419.0,0.24057544]
[1625628841898,0.2295,34420.0,34415.0,0.24057544]
[1625628842554,0.24057544,34416.0,34415.0,0.24057544]
[1625628843518,0.24057544,34416.0,34413.0,0.001]
[1625628844481,0.48115088,34414.0,34413.0,0.001]
[1625628857287,0.48115088,34414.0,34408.0,0.001]
[1625628858608,0.24057544,34409.0,34408.0,0.001]
[1625628858730,0.46902544,34409.0,34408.0,0.001]
[1625628862703,0.96902544,34409.0,34408.0,0.001]
[1625628863125,0.46902544,34409.0,34408.0,0.001]
[1625628863487,0.96902544,34409.0,34408.0,0.001]
[1625628863848,0.46902544,34409.0,34408.0,0.001]
[1625628864028,0.24057544,34409.0,34408.0,0.001]
[1625628865288,0.74057544,34409.0,34408.0,0.001]
[1625628865709,0.24057544,34409.0,34408.0,0.001]
[1625628865830,0.25427745,34409.0,34408.0,0.001]
[1625628866312,0.25427745,34409.0,34403.0,0.001]
[1625628866672,0.48115088,34404.0,34403.0,0.001]
[1625628869859,0.49485274,34404.0,34403.0,0.001]
[1625628870101,0.48115088,34404.0,34403.0,0.001]
[1625628871307,0.49485281,34404.0,34403.0,0.001]
[1625628877736,0.48115088,34404.0,34403.0,0.001]
[1625628879356,0.48115088,34404.0,34400.0,0.87774511]
[1625628880019,0.48115088,34404.0,34400.0,0.55127393]
[1625628880139,0.48115088,34404.0,34400.0,0.24485393]
[1625628880739,0.48115088,34404.0,34399.0,0.81622474]
[1625628880740,0.24057544,34400.0,34399.0,0.24493983]
[1625628880983,0.24057544,34400.0,34399.0,0.08164661]
[1625628881347,0.24057544,34400.0,34398.0,0.81311775]
[1625628881647,0.24057544,34400.0,34398.0,0.48653131]
[1625628882549,0.24057544,34400.0,34398.0,0.3232347]
[1625628882969,0.24057544,34400.0,34399.0,0.0877]
[1625628883092,0.24057544,34400.0,34398.0,0.3232347]
[1625628883569,0.24057544,34400.0,34398.0,0.48657299]
[1625628883872,0.24057544,34400.0,34398.0,0.24157544]
[1625628884533,0.24057544,34400.0,34398.0,0.3232465]
[1625628884773,0.24057544,34400.0,34398.0,0.48661408]
[1625628885015,0.24057544,34400.0,34398.0,0.81330757]
[1625628885194,0.24057544,34400.0,34399.0,0.00438933]
[1625628885317,0.24057544,34400.0,34399.0,2.46287633]
[1625628887296,0.24057544,34400.0,34399.0,1.48419002]
[1625628887475,0.24057544,34400.0,34399.0,1.14619002]
[1625628888197,0.24057544,34400.0,34399.0,0.49373248]
[1625628889397,0.24057544,34400.0,34399.0,1.14673944]
[1625628889878,0.24057544,34400.0,34399.0,0.33064593]
[1625628890060,0.25429289,34400.0,34399.0,0.33064593]
[1625628890180,0.25429289,34400.0,34399.0,0.49372172]
[1625628890359,0.25429289,34400.0,34399.0,0.24897336]
[1625628890658,0.25429289,34400.0,34399.0,0.87564505]
[1625628890961,0.25429289,34400.0,34399.0,0.79413681]
[1625628891199,0.25429289,34400.0,34399.0,0.54964685]
[1625628891500,0.25429289,34400.0,34399.0,1.44556143]
[1625628891618,0.24057544,34400.0,34399.0,1.44556143]
[1625628891859,0.24057544,34400.0,34399.0,2.42282918]
[1625628892343,0.24057544,34400.0,34399.0,1.44556143]
[1625628892461,0.001,34401.0,34399.0,1.44556143]
[1625628892641,0.001,34401.0,34399.0,3.56102543]
[1625628892762,0.001,34401.0,34400.0,2.11469245]
[1625628892882,0.001,34401.0,34400.0,3.4983349]
[1625628893062,0.001,34401.0,34400.0,4.79944711]
[1625628894325,0.001,34401.0,34400.0,3.4983349]
[1625628895471,0.001,34401.0,34400.0,4.80166601]
[1625628896311,0.001,34401.0,34400.0,4.88896601]
[1625628896431,0.001,34401.0,34400.0,6.35947937]
[1625628896673,0.002,34406.0,34400.0,6.35947937]
[1625628896791,0.24057544,34412.0,34400.0,6.35947937]
[1625628896974,0.24057544,34412.0,34410.0,0.48115088]
[1625628897090,0.24057544,34412.0,34410.0,4.01599476]
[1625628897332,0.003,34412.0,34410.0,4.01599476]
[1625628897454,0.003,34412.0,34410.0,4.02038002]
[1625628897575,0.003,34412.0,34411.0,4.56614465]
[1625628897812,0.003,34412.0,34411.0,4.5705292]
[1625628897993,0.003,34412.0,34411.0,6.03655431]
[1625628898111,0.003,34412.0,34411.0,6.12445431]
[1625628899012,0.003,34412.0,34411.0,6.36502975]
[1625628899435,0.003,34412.0,34411.0,4.89900464]
[1625628899798,0.003,34412.0,34411.0,4.81110464]
[1625628900276,0.003,34412.0,34411.0,4.80672009]
[1625628900577,0.003,34412.0,34411.0,3.50210733]
[1625628901177,0.003,34412.0,34411.0,3.83392733]
[1625628901300,0.003,34412.0,34411.0,5.13476134]
[1625628901718,0.003,34412.0,34411.0,4.8941859]
[1625628902260,0.003,34412.0,34411.0,4.9803859]
[1625628902681,0.003,34412.0,34411.0,4.8941859]
[1625628903046,0.003,34412.0,34411.0,4.9661859]
[1625628903288,0.003,34412.0,34411.0,5.68791222]
[1625628904906,0.003,34412.0,34411.0,5.75991222]
[1625628906288,0.001,34413.0,34411.0,5.75991222]
[1625628906648,0.001,34413.0,34412.0,3.23206462]
[1625628907490,0.001,34413.0,34412.0,4.52503128]
[1625628908694,0.001,34413.0,34412.0,3.23206462]
[1625628908871,0.001,34413.0,34412.0,4.52508181]
[1625628910317,0.001,34413.0,34412.0,4.61228181]
[1625628910854,0.001,34413.0,34412.0,4.52508181]
[1625628910975,0.002,34418.0,34412.0,5.9767591]
[1625628911335,0.002,34418.0,34417.0,4.99703036]
[1625628911937,0.002,34418.0,34417.0,3.70677908]
[1625628912478,0.002,34418.0,34417.0,4.99555618]
[1625628912958,0.002,34418.0,34417.0,3.70677908]
[1625628913918,0.002,34418.0,34417.0,2.57780921]
[1625628917043,0.002,34418.0,34417.0,3.70548509]
[1625628917521,0.002,34418.0,34417.0,2.57780921]
[1625628918365,0.9412,34419.0,34417.0,2.57780921]
[1625628918725,0.9412,34419.0,34418.0,2.0944861]
[1625628918849,0.9412,34419.0,34418.0,2.4079261]
[1625628920112,0.9412,34419.0,34418.0,1.44124021]
[1625628921977,0.9412,34419.0,34418.0,2.4079545]
[1625628923420,0.9412,34419.0,34418.0,1.44124021]
[1625628923602,0.9412,34419.0,34418.0,1.12780021]
[1625628924202,1.23584,34419.0,34418.0,0.32231686]
[1625628924507,1.23584,34419.0,34417.0,0.72303787]
[1625628925404,0.9412,34419.0,34418.0,0.24202681]
[1625628925525,0.9412,34419.0,34418.0,0.54614681]
[1625628925646,0.9412,34419.0,34418.0,0.86881704]
[1625628926425,0.9412,34419.0,34418.0,0.87319113]
[1625628926787,0.9412,34419.0,34418.0,0.5505209]
[1625628927274,0.9412,34419.0,34418.0,1.4368085]
[1625628927387,0.9402,34419.0,34418.0,1.4368085]
[1625628927508,0.9402,34419.0,34418.0,2.40417215]
[1625628927748,0.9402,34419.0,34418.0,1.4368085]
[1625628927990,0.9402,34419.0,34418.0,0.79253778]
[1625628928229,0.9402,34419.0,34418.0,0.87321573]
[1625628928711,0.9402,34419.0,34418.0,0.55051994]
[1625628929191,0.9402,34419.0,34418.0,0.63751994]
[1625628929311,0.9402,34419.0,34418.0,0.55051994]
[1625628929793,0.9402,34419.0,34418.0,0.38917204]
[1625628930393,0.9402,34419.0,34418.0,0.47597204]
[1625628930513,0.9402,34419.0,34418.0,0.39529409]
[1625628935439,0.9402,34419.0,34418.0,0.30849409]
[1625628936461,0.9402,34419.0,34418.0,0.39649409]
[1625628937247,0.9402,34419.0,34418.0,0.47744766]
[1625628937484,0.9402,34419.0,34418.0,0.63940808]
[1625628938565,0.95395853,34419.0,34418.0,0.63940808]
[1625628939233,0.95395853,34419.0,34418.0,0.47744766]
[1625628939894,0.95395853,34419.0,34418.0,0.63938796]
[1625628940613,0.95395853,34419.0,34418.0,0.47744766]
[1625628941455,0.95395853,34419.0,34418.0,0.17332766]
[1625628941576,1.23300853,34419.0,34418.0,0.65938545]
[1625628941696,1.23300853,34419.0,34418.0,0.57138545]
[1625628941817,1.23300853,34419.0,34417.0,0.48115088]
[1625628942357,0.01375967,34418.0,34417.0,0.48115088]
[1625628943557,0.49491055,34418.0,34417.0,0.48115088]
[1625628946803,0.84157055,34418.0,34417.0,0.48115088]
[1625628946924,1.86489376,34418.0,34417.0,0.48115088]
[1625628947224,3.05879729,34418.0,34417.0,0.48115088]
[1625628948187,1.86489376,34418.0,34417.0,0.48115088]
[1625628948427,3.05933465,34418.0,34417.0,0.48115088]
[1625628948846,4.42440751,34418.0,34417.0,0.48115088]
[1625628949809,4.42440751,34418.0,34412.0,0.001]
[1625628950049,1.02433538,34413.0,34412.0,0.001]
[1625628950413,1.03810472,34413.0,34412.0,0.001]
[1625628950531,2.23315429,34413.0,34412.0,0.001]
[1625628951493,3.60004051,34413.0,34412.0,0.001]
[1625628951793,5.6190714,34413.0,34412.0,0.001]
[1625628952392,5.6190714,34413.0,34407.0,0.002]
[1625628952693,3.58654404,34408.0,34407.0,0.002]
[1625628952872,3.92845404,34408.0,34407.0,0.002]
[1625628953299,3.94223045,34408.0,34407.0,0.002]
[1625628953538,5.47969291,34408.0,34407.0,0.002]
[1625628953659,5.96084379,34408.0,34407.0,0.002]
[1625628953842,2.37429975,34408.0,34407.0,0.002]
[1625628954082,4.42093051,34408.0,34407.0,0.002]
[1625628954202,4.4071541,34408.0,34407.0,0.002]
[1625628954322,5.94316305,34408.0,34407.0,0.002]
[1625628954502,5.95694002,34408.0,34407.0,0.002]
[1625628954752,5.94316305,34408.0,34407.0,0.002]
[1625628955344,5.95694016,34408.0,34407.0,0.002]
[1625628956245,4.42093121,34408.0,34407.0,0.002]
[1625628956487,5.95580026,34408.0,34407.0,0.002]
[1625628956606,5.94202315,34408.0,34407.0,0.002]
[1625628957269,5.94202315,34408.0,34402.0,0.001]
[1625628957448,2.21691447,34403.0,34402.0,0.001]
[1625628957747,2.69806535,34403.0,34402.0,0.001]
[1625628959793,1.50435529,34403.0,34402.0,0.001]
[1625628964602,0.48115088,34403.0,34402.0,0.001]
[1625628964841,1.50194733,34403.0,34402.0,0.001]
[1625628965623,1.58954733,34403.0,34402.0,0.001]
[1625628965989,0.56875088,34403.0,34402.0,0.001]
[1625628966347,0.56875088,34403.0,34397.0,0.001]
[1625628966468,0.48115088,34403.0,34397.0,0.001]
[1625628967729,0.48115088,34398.0,34397.0,0.001]
[1625628970018,0.77408088,34398.0,34397.0,0.001]
[1625628970501,4.37918088,34398.0,34397.0,0.001]
[1625628973623,4.39296318,34398.0,34397.0,0.001]
[1625628974766,0.48115088,34398.0,34397.0,0.001]
[1625628975125,0.48115088,34398.0,34397.0,0.26627]
[1625628975365,0.48115088,34398.0,34397.0,0.26527]
[1625628979823,0.48115088,34398.0,34397.0,0.50584544]
[1625628980658,0.49493046,34398.0,34397.0,0.50584544]
[1625628985288,0.49493046,34398.0,34397.0,0.26527]
[1625628985408,0.49493046,34398.0,34392.0,0.001]
[1625628985832,0.01378906,34397.0,34394.0,0.24057544]
[1625628986309,0.01378906,34397.0,34395.0,0.00437036]
[1625628986916,0.48115088,34398.0,34395.0,0.00437036]
[1625628987335,0.0137885,34397.0,34395.0,0.00437036]
[1625628987695,0.48115088,34398.0,34395.0,0.00437036]
[1625628988539,0.48115088,34398.0,34396.0,0.0872]
[1625628988897,0.48115088,34398.0,34395.0,0.00437036]
[1625628989079,0.48115088,34398.0,34397.0,0.24938287]
[1625628989257,0.48115088,34398.0,34397.0,0.24501321]
[1625628989499,0.48115088,34398.0,34397.0,0.00436965]
[1625628989857,0.48115088,34398.0,34397.0,0.24494509]
[1625628990039,0.48115088,34398.0,34397.0,0.73523827]
[1625628990157,0.48115088,34398.0,34397.0,0.49013109]
[1625628990399,0.48115088,34398.0,34397.0,0.32670003]
[1625628990639,0.48115088,34398.0,34397.0,0.24494509]
[1625628992558,0.48115088,34398.0,34397.0,0.24057544]
[1625628993220,0.49493931,34398.0,34397.0,0.24057544]
[1625628995202,0.49493931,34398.0,34392.0,0.001]
[1625628995444,0.01379118,34397.0,34392.0,0.001]
[1625628995983,0.24057544,34393.0,34392.0,0.24821698]
[1625628996103,0.24057544,34393.0,34392.0,0.5782317]
[1625628996286,0.24057544,34393.0,34392.0,0.58260208]
[1625628996586,0.24057544,34393.0,34392.0,0.50019642]
[1625628996827,0.24057544,34393.0,34392.0,0.58270433]
[1625628997127,0.24057544,34393.0,34392.0,1.15950809]
[1625628997669,0.24057544,34393.0,34392.0,0.50000083]
[1625628998027,0.24057544,34393.0,34392.0,1.16026026]
[1625628998929,0.24057544,34393.0,34392.0,2.15022978]
[1625629001150,0.24057544,34393.0,34392.0,1.16026026]
[1625629001691,0.24057544,34393.0,34392.0,2.15008568]
[1625629001873,0.24057544,34393.0,34392.0,3.30569092]
[1625629005900,0.24057544,34393.0,34392.0,4.6282695]
[1625629006619,0.25437922,34393.0,34392.0,4.6282695]
[1625629007582,0.25437922,34393.0,34392.0,3.30569092]
[1625629008243,0.25437922,34393.0,34392.0,4.63105359]
[1625629008362,0.25437922,34393.0,34392.0,4.63005359]
[1625629008542,0.25437922,34393.0,34392.0,3.30469092]
[1625629009985,0.25437922,34393.0,34392.0,4.63120062]
[1625629009986,1.28239992,34393.0,34392.0,4.63120062]
[1625629010104,1.28239992,34393.0,34392.0,4.87016062]
[1625629010286,0.25437922,34393.0,34392.0,4.87016062]
[1625629011244,0.93978062,34393.0,34392.0,4.87016062]
[1625629013107,0.15927922,34393.0,34392.0,6.36342296]
[1625629013228,0.24057544,34395.0,34392.0,6.36342296]
[1625629013407,0.68549398,34397.0,34392.0,6.36342296]
[1625629013587,0.68545429,34400.0,34396.0,6.13349563]
[1625629013828,0.68545429,34400.0,34398.0,4.64159144]
[1625629014068,0.68545429,34400.0,34398.0,5.36331776]
[1625629014249,0.01580333,34399.0,34398.0,5.36768226]
[1625629014548,0.002,34399.0,34398.0,5.36768226]
[1625629014907,0.6873403,34399.0,34398.0,5.36768226]
[1625629015028,0.70114383,34399.0,34398.0,5.36768226]
[1625629016048,0.94171927,34399.0,34398.0,5.36768226]
[1625629016529,0.94171927,34399.0,34398.0,4.88653138]
[1625629017433,0.92791574,34399.0,34398.0,4.88653138]
[1625629017731,0.94171929,34399.0,34398.0,4.88653138]
[1625629018034,0.92791574,34399.0,34398.0,4.88653138]
[1625629018395,1.95556557,34399.0,34398.0,4.88653138]
[1625629018574,1.96936956,34399.0,34398.0,4.88653138]
[1625629018695,1.96936956,34399.0,34398.0,3.5559979]
[1625629019058,1.96936956,34399.0,34398.0,4.89362623]
[1625629019537,0.94171973,34399.0,34398.0,4.89362623]
[1625629019838,0.24257544,34399.0,34398.0,4.89362623]
[1625629020679,0.94142887,34399.0,34398.0,4.89362623]
[1625629021823,0.25637895,34399.0,34398.0,4.89362623]
[1625629021939,0.24257544,34399.0,34398.0,4.89362623]
[1625629022419,0.25637883,34399.0,34398.0,4.89362623]
[1625629022961,0.24257544,34399.0,34398.0,4.89362623]
[1625629023501,0.94139108,34399.0,34398.0,4.89362623]
[1625629023800,1.96883673,34399.0,34398.0,3.56036275]
[1625629024583,1.96883673,34399.0,34398.0,3.5559979]
[1625629025364,1.96883673,34399.0,34398.0,3.5603625]
[1625629026326,1.96683673,34399.0,34398.0,3.5603625]
[1625629028914,0.93939108,34399.0,34398.0,4.8996303]
[1625629029094,0.25437918,34399.0,34398.0,4.8996303]
[1625629029396,0.93932438,34399.0,34398.0,4.8996303]
[1625629030777,0.25437918,34399.0,34398.0,4.8996303]
[1625629030956,0.24057544,34399.0,34398.0,4.8996303]
[1625629031858,0.24057544,34399.0,34398.0,4.9866303]
[1625629032524,0.24057544,34399.0,34398.0,4.8996303]
[1625629033302,0.92556353,34399.0,34398.0,4.8996303]
[1625629033482,0.93936468,34399.0,34398.0,4.8996303]
[1625629033602,1.96677432,34399.0,34398.0,4.8996303]
[1625629034323,1.96677432,34399.0,34398.0,3.5603625]
[1625629034442,1.96677432,34399.0,34398.0,3.5559979]
[1625629035646,3.16581573,34399.0,34398.0,3.5559979]
[1625629036726,3.16581573,34399.0,34398.0,3.6430979]
[1625629036849,3.16581573,34399.0,34398.0,3.5559979]
[1625629037088,1.96677432,34399.0,34398.0,4.89566011]
[1625629037510,3.16594812,34399.0,34398.0,3.5559979]
[1625629038474,3.16594812,34399.0,34398.0,3.56036373]
[1625629039073,3.16594812,34399.0,34398.0,4.89995445]
[1625629040096,3.16594812,34399.0,34398.0,3.56036373]
[1625629040519,1.96677432,34399.0,34398.0,4.89941266]
[1625629041421,0.93936468,34399.0,34398.0,4.89941266]
[1625629041661,1.96737276,34399.0,34398.0,4.89941266]
[1625629042142,0.93936468,34399.0,34398.0,4.89941266]
[1625629042384,1.96734984,34399.0,34398.0,4.89941266]
[1625629045456,1.96734984,34399.0,34398.0,5.17720266]
[1625629045874,3.1668718,34399.0,34398.0,5.17720266]
[1625629046355,1.96734984,34399.0,34398.0,5.17720266]
[1625629046775,3.16690938,34399.0,34398.0,5.17720266]
[1625629047676,3.16690938,34399.0,34398.0,4.89941266]
[1625629048519,3.16690938,34399.0,34398.0,4.65883722]
[1625629048639,4.82115247,34399.0,34398.0,3.31978829]
[1625629048940,4.82115247,34399.0,34398.0,2.15939043]
[1625629049601,4.82115247,34399.0,34398.0,2.1550246]
[1625629050203,5.06172791,34399.0,34398.0,2.1550246]
[1625629050865,5.06172791,34399.0,34398.0,0.1550246]
[1625629050988,5.06172791,34399.0,34397.0,0.67408133]
[1625629051230,3.25672335,34398.0,34393.0,0.001]
[1625629051470,1.54270947,34394.0,34393.0,0.001]
[1625629051711,1.54270947,34394.0,34393.0,0.25318444]
[1625629051831,1.55649358,34394.0,34393.0,0.25318444]
[1625629051953,1.55649358,34394.0,34393.0,0.001]
[1625629052193,1.55649358,34394.0,34393.0,0.58978218]
[1625629052314,2.03764446,34394.0,34393.0,0.58978218]
[1625629052674,2.03764446,34394.0,34393.0,0.25333522]
[1625629053102,2.03764446,34394.0,34393.0,0.08511174]
[1625629053399,2.03764446,34394.0,34393.0,0.5893221]
[1625629053516,0.49493499,34394.0,34393.0,0.50521036]
[1625629053756,0.49493499,34394.0,34393.0,0.33714024]
[1625629053998,0.49493499,34394.0,34393.0,0.50522483]
[1625629054903,2.03695312,34394.0,34393.0,0.50522483]
[1625629055140,0.49493499,34394.0,34393.0,0.5893059]
[1625629055443,2.03652828,34394.0,34393.0,0.001]
[1625629056284,2.03652828,34394.0,34392.0,0.25236826]
[1625629056524,2.03652828,34394.0,34392.0,0.08412275]
[1625629056644,0.01378605,34393.0,34392.0,0.08412275]
[1625629057245,0.01378605,34393.0,34391.0,0.58855121]
[1625629058270,0.24057544,34392.0,34391.0,0.58855121]
[1625629058747,0.25436102,34392.0,34391.0,0.50449718]
[1625629058928,0.24057544,34392.0,34391.0,0.33633793]
[1625629059048,0.24057544,34392.0,34391.0,0.50433919]
[1625629059468,0.25436119,34392.0,34391.0,0.50433919]
[1625629059648,0.25436119,34392.0,34391.0,0.25202658]
[1625629059829,0.24057544,34392.0,34391.0,0.25202658]
[1625629060078,0.24057544,34392.0,34391.0,0.58800073]
[1625629060193,0.24057544,34392.0,34391.0,0.25202658]
[1625629061154,0.24057544,34392.0,34391.0,0.08402532]
[1625629061393,0.24057544,34392.0,34391.0,0.25195696]
[1625629061694,0.24057544,34392.0,34390.0,0.58792357]
[1625629061935,0.25436197,34392.0,34390.0,0.58792357]
[1625629062175,0.24057544,34392.0,34390.0,0.25193767]
[1625629062355,0.48115088,34392.0,34390.0,0.08397922]
[1625629062897,0.48115088,34392.0,34388.0,0.5889465]
[1625629063017,0.01378692,34391.0,34388.0,0.5889465]
[1625629063137,0.01378692,34391.0,34389.0,0.08399158]
[1625629063557,0.01378692,34391.0,34389.0,0.58799707]
[1625629063739,0.48115088,34392.0,34389.0,0.58799707]
[1625629065184,0.48115088,34392.0,34390.0,0.08393185]
[1625629066085,1.84900016,34392.0,34389.0,0.58793567]
[1625629067647,1.36775643,34391.0,34389.0,0.08393018]
[1625629067825,0.48115088,34392.0,34389.0,0.25181153]
[1625629067826,1.84882715,34392.0,34389.0,0.25181153]